fUSD/lending_fUSD_20240319
["ID","MTS","AMOUNT","RATE_DAILY","PERIOD"]
[319578089,1710880245652,-500.0,0.00030136,2]
[319578090,1710880245661,-151.0,0.00030136,2]
[319578091,1710880245671,-183.37508761,0.00030136,2]
[319578092,1710880245681,-500.0,0.00030136,2]
[319578093,1710880245691,-500.0,0.00030136,2]
[319578095,1710880245701,-500.0,0.00030136,2]
[319578096,1710880245711,-500.0,0.00030136,2]
[319578097,1710880245721,-500.0,0.00030136,2]
[319578098,1710880245731,-621.8294279,0.00030136,2]
[319578099,1710880245742,-500.0,0.00030136,2]
[319578100,1710880245751,-500.0,0.00030136,2]
[319578101,1710880245761,-533.23678055,0.00030136,2]
[319578102,1710880245773,-500.0,0.00030136,2]
[319578103,1710880245782,-500.0,0.00030136,2]
[319578104,1710880245792,-500.0,0.00030136,2]
[319578105,1710880245802,-501.05522369,0.00030136,2]
[319578106,1710880245811,-500.0,0.00030136,2]
[319578107,1710880245821,-500.0,0.00030136,2]
[319578108,1710880245831,-531.24986828,0.00030136,2]
[319578109,1710880245841,-646.11,0.00030136,2]
[319578110,1710880245851,-500.0,0.00030136,2]
[319578111,1710880245862,-500.0,0.00030136,2]
[319578112,1710880245872,-500.0,0.00030136,2]
[319578113,1710880245883,-500.0,0.00030136,2]
[319578114,1710880245893,-500.0,0.00030136,2]
[319578115,1710880245903,-500.0,0.00030136,2]
[319578116,1710880245913,-500.0,0.00030136,2]
[319578117,1710880245922,-225.46783924,0.00030136,2]
[319578118,1710880245932,-500.0,0.00030136,2]
[319578119,1710880245941,-500.0,0.00030136,2]
[319578120,1710880245950,-500.0,0.00030136,2]
[319578121,1710880245959,-500.0,0.00030136,2]
[319578122,1710880245969,-500.0,0.00030136,2]
[319578123,1710880245978,-500.0,0.00030136,2]
[319578124,1710880245987,-500.0,0.00030136,2]
[319578125,1710880245997,-500.0,0.00030136,2]
[319578126,1710880246007,-500.0,0.00030136,2]
[319578127,1710880246018,-500.0,0.00030136,2]
[319578128,1710880246027,-500.0,0.00030136,2]
[319578129,1710880246036,-500.0,0.00030136,2]
[319578130,1710880246045,-500.0,0.00030136,2]
[319578131,1710880246054,-1225.94,0.00030136,2]
[319578132,1710880246065,-961.81,0.00030136,2]
[319578133,1710880246075,-500.0,0.00030136,2]
[319578134,1710880246086,-500.0,0.00030136,2]
[319578135,1710880246173,-588.9,0.00030136,2]
[319578136,1710880246185,-500.0,0.00030136,2]
[319578137,1710880246195,-500.0,0.00030136,2]
[319578138,1710880246204,-584.31,0.00030136,2]
[319578139,1710880246214,-796.92,0.00030136,2]
[319578140,1710880246223,-1101.96,0.00030136,2]
[319578141,1710880246233,-1629.99,0.00030136,2]
[319578142,1710880246243,-500.0,0.00030136,2]
[319578143,1710880246252,-500.0,0.00030136,2]
[319578144,1710880246262,-500.0,0.00030136,2]
[319578145,1710880246273,-500.0,0.00030136,2]
[319578146,1710880246283,-611.1,0.00030136,2]
[319578147,1710880246292,-500.0,0.00030136,2]
[319578148,1710880246301,-500.0,0.00030136,2]
[319578149,1710880246311,-537.38,0.00030136,2]
[319578150,1710880246320,-606.01,0.00030136,2]
[319578151,1710880246330,-500.0,0.00030136,2]
[319578152,1710880246340,-1620.09,0.00030136,2]
[319578153,1710880246349,-1279.4,0.00030136,2]
[319578154,1710880246359,-183.75762424,0.00030136,2]
[319578155,1710880246368,-500.0,0.00030136,2]
[319578156,1710880246378,-500.0,0.00030136,2]
[319578157,1710880246388,-525.59587046,0.00030136,2]
[319578158,1710880246398,-500.0,0.00030136,2]
[319578159,1710880246408,-500.0,0.00030136,2]
[319578160,1710880246418,-151.0,0.00030136,7]
[319578161,1710880246427,-151.0,0.00030136,7]
[319578162,1710880246437,-271.392352,0.00030136,7]
[319578163,1710880246446,-500.0,0.00030136,2]
[319578164,1710880246456,-500.0,0.00030136,2]
[319578165,1710880246466,-500.0,0.00030136,2]
[319578166,1710880246476,-1807.75,0.00030136,2]
[319578167,1710880246485,-646.77,0.00030136,2]
[319578168,1710880246495,-500.0,0.00030136,2]
[319578169,1710880246505,-561.10124659,0.00030136,2]
[319578170,1710880246517,-676.16,0.00030136,2]
[319578171,1710880246527,-500.0,0.00030136,2]
[319578172,1710880246542,-605.27338189,0.00030136,2]
[319578174,1710880246552,-500.0,0.00030136,2]
[319578176,1710880246562,-1122.1,0.00030136,2]
[319578178,1710880246571,-500.0,0.00030136,2]
[319578180,1710880246580,-500.0,0.00030136,2]
[319578182,1710880246591,-810.4,0.00030136,2]
[319578184,1710880246601,-500.0,0.00030136,2]
[319578186,1710880246611,-500.0,0.00030136,2]
[319578188,1710880246620,-500.0,0.00030136,2]
[319578190,1710880246630,-500.0,0.00030136,2]
[319578191,1710880246644,-856.78,0.00030136,2]
[319578192,1710880246654,-500.0,0.00030136,2]
[319578193,1710880246664,-500.0,0.00030136,2]
[319578195,1710880246674,-722.3,0.00030136,2]
[319578197,1710880246684,-500.0,0.00030136,2]
[319578198,1710880246694,-500.0,0.00030136,2]
[319578199,1710880246703,-500.0,0.00030136,2]
[319578200,1710880246712,-500.0,0.00030136,2]
[319578201,1710880246722,-552.46,0.00030136,2]
[319578202,1710880246731,-500.0,0.00030136,2]
[319578203,1710880246741,-500.0,0.00030136,2]
[319578204,1710880246751,-500.0,0.00030136,2]
[319578205,1710880246761,-500.0,0.00030136,2]
[319578206,1710880246771,-744.5,0.00030136,2]
[319578207,1710880246780,-500.0,0.00030136,2]
[319578208,1710880246790,-642.85,0.00030136,2]
[319578209,1710880246803,-955.14,0.00030136,2]
[319578210,1710880246812,-600.84017788,0.00030136,2]
[319578211,1710880246822,-1398.84,0.00030136,2]
[319578212,1710880246831,-544.51,0.00030136,2]
[319578213,1710880246839,-800.54,0.00030136,2]
[319578214,1710880246848,-500.0,0.00030136,2]
[319578215,1710880246857,-500.0,0.00030136,2]
[319578216,1710880246866,-623.11,0.00030136,2]
[319578217,1710880246877,-1230.79,0.00030136,2]
[319578218,1710880246886,-550.58,0.00030136,2]
[319578219,1710880246895,-500.0,0.00030136,2]
[319578220,1710880246904,-500.0,0.00030136,2]
[319578221,1710880246913,-500.0,0.00030136,2]
[319578222,1710880246922,-500.0,0.00030136,2]
[319578223,1710880246932,-500.0,0.00030136,2]
[319578224,1710880246941,-151.0,0.00030136,7]
[319578225,1710880246950,-151.0,0.00030136,7]
[319578226,1710880246959,-500.0,0.00030136,2]
[319578227,1710880246969,-151.0,0.00030136,7]
[319578228,1710880246978,-151.0,0.00030136,7]
[319578229,1710880246987,-500.0,0.00030136,2]
[319578230,1710880246996,-204.08493755,0.00030136,2]
[319578231,1710880247005,-500.0,0.00030136,2]
[319578232,1710880247015,-500.0,0.00030136,2]
[319578233,1710880247026,-500.0,0.00030136,2]
[319578234,1710880247035,-822.19,0.00030136,2]
[319578235,1710880247044,-500.0,0.00030136,2]
[319578236,1710880247053,-500.0,0.00030136,2]
[319578237,1710880247062,-500.0,0.00030136,2]
[319578238,1710880247071,-500.0,0.00030136,2]
[319578239,1710880247080,-500.0,0.00030136,2]
[319578240,1710880247092,-500.0,0.00030136,2]
[319578241,1710880247101,-500.0,0.00030136,2]
[319578242,1710880247110,-500.0,0.00030136,2]
[319578243,1710880247119,-706.39,0.00030136,2]
[319578244,1710880247129,-500.0,0.00030136,2]
[319578245,1710880247138,-500.0,0.00030136,2]
[319578246,1710880247148,-2961.98,0.00030136,2]
[319578247,1710880247157,-502.55142418,0.00030136,2]
[319578248,1710880247169,-500.0,0.00030136,2]
[319578249,1710880247178,-500.0,0.00030136,2]
[319578250,1710880247188,-500.0,0.00030136,2]
[319578251,1710880247198,-500.0,0.00030136,2]
[319578252,1710880247208,-500.0,0.00030136,2]
[319578253,1710880247217,-500.0,0.00030136,2]
[319578254,1710880247227,-500.0,0.00030136,2]
[319578255,1710880247236,-500.0,0.00030136,2]
[319578256,1710880247246,-500.0,0.00030136,2]
[319578257,1710880247256,-500.0,0.00030136,2]
[319578258,1710880247265,-500.0,0.00030136,2]
[319578259,1710880247278,-500.0,0.00030136,2]
[319578260,1710880247287,-500.0,0.00030136,2]
[319578261,1710880247297,-500.0,0.00030136,2]
[319578262,1710880247307,-500.0,0.00030136,2]
[319578263,1710880247316,-500.0,0.00030136,2]
[319578264,1710880247325,-512.23866451,0.00030136,2]
[319578265,1710880247335,-500.0,0.00030136,2]
[319578266,1710880247344,-500.0,0.00030136,2]
[319578267,1710880247354,-500.0,0.00030136,2]
[319578268,1710880247363,-968.42,0.00030136,2]
[319578269,1710880247373,-500.0,0.00030136,2]
[319578270,1710880247382,-871.15,0.00030136,2]
[319578271,1710880247392,-500.0,0.00030136,2]
[319578272,1710880247401,-500.0,0.00030136,2]
[319578273,1710880247410,-500.0,0.00030136,2]
[319578274,1710880247420,-500.0,0.00030136,2]
[319578275,1710880247429,-669.1,0.00030136,2]
[319578276,1710880247439,-1160.38,0.00030136,2]
[319578277,1710880247448,-500.0,0.00030136,2]
[319578278,1710880247457,-500.0,0.00030136,2]
[319578279,1710880247466,-500.0,0.00030136,2]
[319578280,1710880247475,-447.30052334,0.00030136,2]
[319578281,1710880247485,-500.0,0.00030136,2]
[319578282,1710880247494,-500.0,0.00030136,2]
[319578283,1710880247503,-500.0,0.00030136,2]
[319578284,1710880247512,-404.5766296,0.00030136,2]
[319578285,1710880247523,-500.0,0.00030136,2]
[319578286,1710880247532,-500.0,0.00030136,2]
[319578287,1710880247541,-500.0,0.00030136,2]
[319578288,1710880247550,-500.0,0.00030136,2]
[319578289,1710880247559,-500.0,0.00030136,2]
[319578290,1710880247569,-500.0,0.00030136,2]
[319578291,1710880247579,-500.0,0.00030136,2]
[319578292,1710880247588,-500.0,0.00030136,2]
[319578293,1710880247597,-500.0,0.00030136,2]
[319578294,1710880247607,-151.0,0.00030136,7]
[319578295,1710880247617,-151.0,0.00030136,7]
[319578296,1710880247626,-500.0,0.00030136,2]
[319578297,1710880247635,-853.17,0.00030136,2]
[319578298,1710880247645,-389.99803834,0.00030136,2]
[319578299,1710880247654,-500.0,0.00030136,2]
[319578300,1710880247664,-500.0,0.00030136,2]
[319578301,1710880247673,-793.87,0.00030136,2]
[319578302,1710880247682,-500.0,0.00030136,2]
[319578303,1710880247691,-500.0,0.00030136,2]
[319578304,1710880247700,-913.15,0.00030136,2]
[319578305,1710880247710,-779.07,0.00030136,2]
[319578306,1710880247719,-517.04,0.00030136,2]
[319578307,1710880247728,-2045.1,0.00030136,2]
[319578308,1710880247737,-504.8659033,0.00030136,2]
[319578309,1710880247747,-500.0,0.00030136,2]
[319578310,1710880247756,-1133.92,0.00030136,2]
[319578311,1710880247765,-500.0,0.00030136,2]
[319578312,1710880247776,-500.0,0.00030136,2]
[319578313,1710880247785,-500.0,0.00030136,2]
[319578314,1710880247795,-2083.03,0.00030136,2]
[319578315,1710880247804,-1272.69,0.00030136,2]
[319578316,1710880247813,-500.0,0.00030136,2]
[319578317,1710880247821,-888.07,0.00030136,2]
[319578318,1710880247830,-500.0,0.00030136,2]
[319578319,1710880247839,-500.0,0.00030136,2]
[319578320,1710880247848,-500.0,0.00030136,2]
[319578321,1710880247857,-500.0,0.00030136,2]
[319578322,1710880247867,-500.0,0.00030136,2]
[319578323,1710880247876,-500.0,0.00030136,2]
[319578324,1710880247885,-500.0,0.00030136,2]
[319578325,1710880247894,-151.0,0.00030136,7]
[319578326,1710880247903,-500.0,0.00030136,2]
[319578327,1710880247912,-1321.95,0.00030136,2]
[319578328,1710880247921,-785.14,0.00030136,2]
[319578329,1710880247930,-500.0,0.00030136,2]
[319578330,1710880247940,-500.0,0.00030136,2]
[319578331,1710880247949,-841.09,0.00030136,2]
[319578332,1710880247959,-500.0,0.00030136,2]
[319578333,1710880247968,-500.0,0.00030136,2]
[319578334,1710880247977,-614.94,0.00030136,2]
[319578335,1710880247986,-571.17,0.00030136,2]
[319578336,1710880247996,-1721.45,0.00030136,2]
[319578337,1710880248005,-685.2,0.00030136,2]
[319578338,1710880248014,-500.0,0.00030136,2]
[319578339,1710880248025,-1284.81,0.00030136,2]
[319578340,1710880248034,-500.0,0.00030136,2]
[319578341,1710880248042,-500.0,0.00030136,2]
[319578342,1710880248051,-913.19,0.00030136,2]
[319578343,1710880248060,-500.0,0.00030136,2]
[319578344,1710880248071,-500.0,0.00030136,2]
[319578345,1710880248082,-500.0,0.00030136,2]
[319578346,1710880248092,-535.99,0.00030136,2]
[319578347,1710880248101,-1341.11,0.00030136,2]
[319578348,1710880248111,-1220.35,0.00030136,2]
[319578349,1710880248121,-500.0,0.00030136,2]
[319578350,1710880248130,-500.0,0.00030136,2]
[319578351,1710880248140,-1453.13,0.00030136,2]
[319578352,1710880248150,-500.0,0.00030136,2]
[319578353,1710880248160,-500.0,0.00030136,2]
[319578354,1710880248169,-500.0,0.00030136,2]
[319578355,1710880248179,-500.0,0.00030136,2]
[319578356,1710880248189,-1525.3,0.00030136,2]
[319578357,1710880248199,-500.0,0.00030136,2]
[319578358,1710880248209,-629.42071,0.00030136,2]
[319578359,1710880248219,-500.0,0.00030136,2]
[319578360,1710880248229,-640.99,0.00030136,2]
[319578361,1710880248238,-1174.39,0.00030136,2]
[319578362,1710880248248,-500.0,0.00030136,2]
[319578363,1710880248258,-1450.21,0.00030136,2]
[319578364,1710880248270,-560.27,0.00030136,2]
[319578365,1710880248280,-574.88,0.00030136,2]
[319578366,1710880248290,-851.8,0.00030136,2]
[319578367,1710880248299,-151.0,0.00030136,7]
[319578368,1710880248308,-500.0,0.00030136,2]
[319578369,1710880248318,-500.0,0.00030136,2]
[319578370,1710880248327,-962.08,0.00030136,2]
[319578371,1710880248336,-1252.23,0.00030136,2]
[319578372,1710880248346,-509.91,0.00030136,2]
[319578373,1710880248355,-624.54,0.00030136,2]
[319578374,1710880248364,-850.51,0.00030136,2]
[319578375,1710880248374,-614.2,0.00030136,2]
[319578376,1710880248383,-823.5,0.00030136,2]
[319578377,1710880248393,-500.0,0.00030136,2]
[319578378,1710880248402,-500.0,0.00030136,2]
[319578379,1710880248412,-500.0,0.00030136,2]
[319578380,1710880248421,-500.0,0.00030136,2]
[319578381,1710880248430,-1231.59,0.00030136,2]
[319578382,1710880248440,-500.0,0.00030136,2]
[319578383,1710880248449,-500.0,0.00030136,2]
[319578384,1710880248459,-1043.21,0.00030136,2]
[319578385,1710880248468,-179.272425,0.00030136,7]
[319578386,1710880248477,-500.0,0.00030136,2]
[319578387,1710880248487,-1345.85,0.00030136,2]
[319578388,1710880248497,-528.37,0.00030136,2]
[319578389,1710880248507,-815.71,0.00030136,2]
[319578390,1710880248517,-500.0,0.00030136,2]
[319578391,1710880248527,-500.0,0.00030136,2]
[319578392,1710880248537,-1514.27,0.00030136,2]
[319578393,1710880248546,-538.56,0.00030136,2]
[319578394,1710880248555,-500.0,0.00030136,2]
[319578395,1710880248565,-500.0,0.00030136,2]
[319578396,1710880248575,-1885.63,0.00030136,2]
[319578397,1710880248585,-2028.46,0.00030136,2]
[319578398,1710880248594,-500.0,0.00030136,2]
[319578399,1710880248604,-500.0,0.00030136,2]
[319578400,1710880248613,-500.0,0.00030136,2]
[319578401,1710880248623,-151.0,0.00030136,7]
[319578402,1710880248632,-500.0,0.00030136,2]
[319578403,1710880248642,-500.0,0.00030136,2]
[319578404,1710880248651,-500.0,0.00030136,2]
[319578405,1710880248661,-500.0,0.00030136,2]
[319578406,1710880248671,-1108.45,0.00030136,2]
[319578407,1710880248680,-3224.19,0.00030136,2]
[319578408,1710880248690,-500.0,0.00030136,2]
[319578409,1710880248700,-500.0,0.00030136,2]
[319578410,1710880248709,-1148.06,0.00030136,2]
[319578411,1710880248718,-500.0,0.00030136,2]
[319578412,1710880248728,-150.0,0.00030136,2]
[319578413,1710880248737,-504.27099766,0.00030136,2]
[319578414,1710880248747,-500.0,0.00030136,2]
[319578415,1710880248756,-500.0,0.00030136,2]
[319578416,1710880248765,-500.0,0.00030136,2]
[319578417,1710880248779,-500.0,0.00030136,2]
[319578418,1710880248788,-500.0,0.00030136,2]
[319578419,1710880248797,-1135.44,0.00030136,2]
[319578420,1710880248807,-500.0,0.00030136,2]
[319578421,1710880248817,-561.33,0.00030136,2]
[319578422,1710880248827,-384.09142954,0.00030136,2]
[319578423,1710880249611,-115.90857046,0.00030136,2]
[319578424,1710880249621,-151.0,0.00030136,7]
[319578425,1710880249630,-151.0,0.00030136,7]
[319578426,1710880249640,-500.0,0.00030136,2]
[319578427,1710880249649,-151.0,0.00030136,7]
[319578428,1710880249658,-151.0,0.00030136,7]
[319578429,1710880249670,-500.0,0.00030136,2]
[319578430,1710880249680,-5000.0,0.00030136,2]
[319578431,1710880249689,-500.0,0.00030136,2]
[319578432,1710880249702,-1178.93,0.00030136,2]
[319578433,1710880249711,-500.0,0.00030136,2]
[319578434,1710880249720,-448.04308524,0.00030136,2]
[319578435,1710880249730,-4993.79,0.00030136,2]
[319578436,1710880249739,-576.16,0.00030136,2]
[319578437,1710880249748,-500.0,0.00030136,2]
[319578438,1710880249757,-500.0,0.00030136,2]
[319578439,1710880249766,-500.0,0.00030136,2]
[319578440,1710880249779,-2016.06,0.00030136,2]
[319578441,1710880249788,-844.34,0.00030136,2]
[319578442,1710880249797,-151.0,0.00030136,7]
[319578443,1710880249807,-151.0,0.00030136,7]
[319578444,1710880249815,-612.64,0.00030136,2]
[319578445,1710880249824,-500.0,0.00030136,2]
[319578446,1710880249833,-157.459031,0.00030136,7]
[319578447,1710880249842,-641.29,0.00030136,2]
[319578448,1710880249852,-500.0,0.00030136,2]
[319578449,1710880249860,-500.0,0.00030136,2]
[319578450,1710880249870,-503.51194537,0.00030136,2]
[319578451,1710880249879,-605.76,0.00030136,2]
[319578452,1710880249889,-885.95,0.00030136,2]
[319578453,1710880249899,-662.66,0.00030136,2]
[319578454,1710880249908,-2329.1,0.00030136,2]
[319578455,1710880249917,-500.0,0.00030136,2]
[319578456,1710880249927,-505.39026439,0.00030136,2]
[319578457,1710880249936,-1522.62,0.00030136,2]
[319578458,1710880249946,-575.77,0.00030136,2]
[319578459,1710880249955,-151.0,0.00030136,7]
[319578460,1710880249964,-500.0,0.00030136,2]
[319578461,1710880249973,-500.0,0.00030136,2]
[319578462,1710880249982,-520.03602686,0.00030136,2]
[319578463,1710880249991,-1163.86,0.00030136,2]
[319578464,1710880250000,-566.79,0.00030136,2]
[319578465,1710880250009,-500.0,0.00030136,2]
[319578466,1710880250018,-1094.25,0.00030136,2]
[319578467,1710880250030,-709.46,0.00030136,2]
[319578468,1710880250039,-1551.74,0.00030136,2]
[319578469,1710880250048,-500.0,0.00030136,2]
[319578470,1710880250056,-500.0,0.00030136,2]
[319578471,1710880250066,-1796.57,0.00030136,2]
[319578472,1710880250080,-1863.82,0.00030136,2]
[319578473,1710880250090,-500.0,0.00030136,2]
[319578474,1710880250099,-621.57,0.00030136,2]
[319578475,1710880250109,-500.0,0.00030136,2]
[319578476,1710880250119,-500.0,0.00030136,2]
[319578477,1710880250129,-500.0,0.00030136,2]
[319578478,1710880250139,-500.0,0.00030136,2]
[319578479,1710880250148,-704.1,0.00030136,2]
[319578480,1710880250158,-500.0,0.00030136,2]
[319578481,1710880250169,-946.82,0.00030136,2]
[319578482,1710880250179,-1123.26,0.00030136,2]
[319578483,1710880250190,-1374.65,0.00030136,2]
[319578484,1710880250200,-500.0,0.00030136,2]
[319578485,1710880250209,-500.0,0.00030136,2]
[319578486,1710880250219,-500.0,0.00030136,2]
[319578487,1710880250228,-151.0,0.00030136,7]
[319578488,1710880250237,-151.0,0.00030136,7]
[319578489,1710880250247,-500.0,0.00030136,2]
[319578490,1710880250256,-1148.29,0.00030136,2]
[319578491,1710880250266,-500.0,0.00030136,2]
[319578492,1710880250277,-1576.52,0.00030136,2]
[319578493,1710880250287,-500.0,0.00030136,2]
[319578494,1710880250296,-1039.92,0.00030136,2]
[319578495,1710880250306,-500.0,0.00030136,2]
[319578496,1710880250315,-628.87,0.00030136,2]
[319578497,1710880250324,-1205.18,0.00030136,2]
[319578498,1710880250334,-500.0,0.00030136,2]
[319578499,1710880250343,-500.0,0.00030136,2]
[319578500,1710880250353,-2097.72,0.00030136,2]
[319578501,1710880250362,-500.0,0.00030136,2]
[319578502,1710880250372,-500.0,0.00030136,2]
[319578503,1710880250381,-714.02,0.00030136,2]
[319578504,1710880250391,-5501.09,0.00030136,2]
[319578505,1710880250400,-151.0,0.00030136,7]
[319578506,1710880250410,-151.0,0.00030136,7]
[319578507,1710880250419,-151.0,0.00030136,7]
[319578508,1710880250428,-151.0,0.00030136,7]
[319578509,1710880250438,-1370.56,0.00030136,2]
[319578510,1710880250448,-2267.08,0.00030136,2]
[319578511,1710880250457,-676.19,0.00030136,2]
[319578512,1710880250466,-151.0,0.00030136,7]
[319578513,1710880250476,-500.0,0.00030136,2]
[319578514,1710880250485,-151.0,0.00030136,7]
[319578515,1710880250494,-500.0,0.00030136,2]
[319578516,1710880250503,-151.0,0.00030136,7]
[319578517,1710880250512,-151.0,0.00030136,7]
[319578518,1710880250523,-500.0,0.00030136,2]
[319578519,1710880250532,-500.0,0.00030136,2]
[319578520,1710880250541,-1072.22,0.00030136,2]
[319578521,1710880250550,-1316.3,0.00030136,2]
[319578522,1710880250559,-2291.08,0.00030136,2]
[319578523,1710880250569,-1733.19,0.00030136,2]
[319578524,1710880250578,-2871.2,0.00030136,2]
[319578525,1710880250587,-500.0,0.00030136,2]
[319578526,1710880250597,-500.0,0.00030136,2]
[319578527,1710880250606,-500.0,0.00030136,2]
[319578528,1710880250615,-1797.22,0.00030136,2]
[319578529,1710880250624,-3014.65,0.00030136,2]
[319578530,1710880250633,-1928.03,0.00030136,2]
[319578531,1710880250642,-500.0,0.00030136,2]
[319578532,1710880250651,-500.0,0.00030136,2]
[319578533,1710880250660,-564.2,0.00030136,2]
[319578534,1710880250669,-500.0,0.00030136,2]
[319578535,1710880250678,-159.001533,0.00030136,7]
[319578536,1710880250687,-159.001533,0.00030136,7]
[319578537,1710880250697,-1258.63,0.00030136,2]
[319578538,1710880250707,-159.001533,0.00030136,7]
[319578539,1710880250716,-1822.82,0.00030136,2]
[319578540,1710880250725,-159.001533,0.00030136,7]
[319578541,1710880250735,-500.0,0.00030136,2]
[319578542,1710880250744,-500.0,0.00030136,2]
[319578543,1710880250754,-804.9,0.00030136,2]
[319578544,1710880250763,-500.0,0.00030136,2]
[319578545,1710880250774,-842.67,0.00030136,2]
[319578546,1710880250784,-500.0,0.00030136,2]
[319578547,1710880250793,-500.0,0.00030136,2]
[319578548,1710880250803,-159.001533,0.00030136,7]
[319578549,1710880250812,-159.001533,0.00030136,7]
[319578550,1710880250821,-159.001533,0.00030136,7]
[319578551,1710880250830,-159.001533,0.00030136,7]
[319578552,1710880250840,-500.0,0.00030136,2]
[319578553,1710880250849,-2532.72,0.00030136,2]
[319578554,1710880250859,-570.18,0.00030136,2]
[319578555,1710880250868,-1252.68,0.00030136,2]
[319578556,1710880250878,-500.0,0.00030136,2]
[319578557,1710880250888,-1231.12,0.00030136,2]
[319578558,1710880250897,-151.0,0.00030136,7]
[319578559,1710880250906,-500.0,0.00030136,2]
[319578560,1710880250916,-151.0,0.00030136,7]
[319578561,1710880250925,-500.0,0.00030136,2]
[319578562,1710880250935,-151.0,0.00030136,7]
[319578563,1710880250944,-151.0,0.00030136,7]
[319578564,1710880250954,-1092.02,0.00030136,2]
[319578565,1710880250963,-500.0,0.00030136,2]
[319578566,1710880250973,-500.0,0.00030136,2]
[319578567,1710880250982,-2214.57,0.00030136,2]
[319578568,1710880250991,-500.0,0.00030136,2]
[319578569,1710880251000,-1838.93,0.00030136,2]
[319578570,1710880251010,-500.0,0.00030136,2]
[319578571,1710880251020,-194.935761,0.00030136,7]
[319578572,1710880251031,-194.935761,0.00030136,7]
[319578573,1710880251041,-151.0,0.00030136,7]
[319578574,1710880251051,-504.65,0.00030136,2]
[319578575,1710880251061,-1378.9,0.00030136,2]
[319578576,1710880251073,-194.935761,0.00030136,7]
[319578577,1710880251085,-500.0,0.00030136,2]
[319578578,1710880251095,-151.0,0.00030136,7]
[319578579,1710880251104,-194.935761,0.00030136,7]
[319578580,1710880251114,-151.0,0.00030136,7]
[319578581,1710880251124,-151.0,0.00030136,7]
[319578582,1710880251134,-500.0,0.00030136,2]
[319578583,1710880251143,-500.0,0.00030136,2]
[319578584,1710880251154,-660.18,0.00030136,2]
[319578585,1710880251164,-1021.17,0.00030136,2]
[319578586,1710880251177,-194.935761,0.00030136,7]
[319578587,1710880251187,-194.935761,0.00030136,7]
[319578588,1710880251197,-1907.77,0.00030136,2]
[319578589,1710880251207,-194.935761,0.00030136,7]
[319578590,1710880251217,-194.935761,0.00030136,7]
[319578591,1710880251226,-500.0,0.00030136,2]
[319578592,1710880251236,-1076.36,0.00030136,2]
[319578593,1710880251246,-668.74,0.00030136,2]
[319578594,1710880251255,-921.64,0.00030136,2]
[319578595,1710880251267,-500.0,0.00030136,2]
[319578596,1710880251279,-2428.46,0.00030136,2]
[319578597,1710880251289,-500.0,0.00030136,2]
[319578598,1710880251299,-500.0,0.00030136,2]
[319578599,1710880251309,-500.0,0.00030136,2]
[319578600,1710880251319,-2819.68,0.00030136,2]